[Event "Deloitte NK 2021 Vrouwen"]
[Site "Hoogeveen, Netherlands"]
[Date "2021.10.17"]
[Round "1.4"]
[White "Haast, Anne"]
[Black "Peng, Zhaoqin"]
[Result "1/2-1/2"]
[TimeControl "90min/40moves + 30min + 30sec/move"]
[WhiteElo "2318"]
[BlackElo "2359"]

1. e4 {[%clk 01:30:56]} {[%emt 00:00:04]} e6 {[%clk 01:30:38]} {[%emt
00:00:23]} 2. d4 {[%clk 01:26:31]} {[%emt 00:04:55]} d5 {[%clk 01:31:01]}
{[%emt 00:00:07]} 3. Nc3 {[%clk 01:26:15]} {[%emt 00:00:45]} Bb4 {[%clk
01:31:14]} {[%emt 00:00:17]} 4. e5 {[%clk 01:23:41]} {[%emt 00:03:05]} c5
{[%clk 01:31:15]} {[%emt 00:00:29]} 5. a3 {[%clk 01:22:49]} {[%emt 00:01:22]}
Bxc3+ {[%clk 01:31:35]} {[%emt 00:00:09]} 6. bxc3 {[%clk 01:23:08]} {[%emt
00:00:11]} Qa5 {[%clk 01:31:45]} {[%emt 00:00:21]} 7. Bd2 {[%clk 01:20:50]}
{[%emt 00:02:48]} Qa4 {[%clk 01:32:01]} {[%emt 00:00:14]} 8. Nf3 {[%clk
01:16:37]} {[%emt 00:04:43]} b6 {[%clk 01:28:26]} {[%emt 00:04:05]} 9. Qb1
{[%clk 01:10:42]} {[%emt 00:06:25]} Ba6 {[%clk 01:25:11]} {[%emt 00:03:45]} 10.
Bxa6 {[%clk 01:08:22]} {[%emt 00:02:50]} Qxa6 {[%clk 01:10:43]} {[%emt
00:14:57]} 11. a4 {[%clk 01:06:13]} {[%emt 00:02:39]} Ne7 {[%clk 01:09:50]}
{[%emt 00:01:22]} 12. Qb5+ {[%clk 01:01:14]} {[%emt 00:05:31]} Qxb5 {[%clk
01:06:32]} {[%emt 00:03:48]} 13. axb5 {[%clk 00:57:05]} {[%emt 00:04:39]} O-O
{[%clk 00:49:45]} {[%emt 00:17:16]} 14. Ra2 {[%clk 00:40:12]} {[%emt 00:17:23]}
cxd4 {[%clk 00:41:16]} {[%emt 00:08:59]} 15. cxd4 {[%clk 00:39:44]} {[%emt
00:00:59]} a5 {[%clk 00:41:31]} {[%emt 00:00:15]} 16. Bb4 {[%clk 00:25:34]}
{[%emt 00:14:39]} Ra7 {[%clk 00:41:38]} {[%emt 00:00:23]} 17. Kd2 {[%clk
00:25:07]} {[%emt 00:00:57]} Rc8 {[%clk 00:41:19]} {[%emt 00:00:49]} 18. g4
{[%clk 00:22:39]} {[%emt 00:02:58]} Ng6 {[%clk 00:34:08]} {[%emt 00:07:41]} 19.
Bd6 {[%clk 00:21:40]} {[%emt 00:01:29]} Nd7 {[%clk 00:28:05]} {[%emt 00:06:33]}
20. h4 {[%clk 00:21:00]} {[%emt 00:01:10]} f6 {[%clk 00:26:56]} {[%emt
00:01:38]} 21. h5 {[%clk 00:18:31]} {[%emt 00:03:00]} Nh8 {[%clk 00:27:11]}
{[%emt 00:00:15]} 22. Re1 {[%clk 00:04:25]} {[%emt 00:16:28]} Nf7 {[%clk
00:26:30]} 23. c3 {[%clk 00:02:52]} {[%emt 00:01:22]} Nxd6 {[%clk 00:22:48]}
{[%emt 00:04:12]} 24. exd6 {[%clk 00:03:21]} Nf8 {[%clk 00:23:11]} {[%emt
00:00:07]} 25. g5 {[%clk 00:02:44]} {[%emt 00:01:06]} Rd7 {[%clk 00:18:54]}
{[%emt 00:04:47]} 26. h6 {[%clk 00:02:31]} {[%emt 00:00:43]} fxg5 {[%clk
00:16:48]} {[%emt 00:02:36]} 27. hxg7 {[%clk 00:02:05]} {[%emt 00:00:56]} Kxg7
{[%clk 00:16:08]} {[%emt 00:01:10]} 28. Nxg5 {[%clk 00:01:52]} {[%emt
00:00:43]} Rxd6 {[%clk 00:16:22]} {[%emt 00:00:16]} 29. Rh1 {[%clk 00:01:21]}
{[%emt 00:01:00]} h6 {[%clk 00:04:32]} {[%emt 00:12:20]} 30. Nf3 {[%clk
00:01:50]} {[%emt 00:00:01]} Ng6 {[%clk 00:04:56]} {[%emt 00:00:07]} 31. Raa1
{[%clk 00:02:09]} {[%emt 00:00:12]} Rf8 {[%clk 00:04:48]} {[%emt 00:00:38]} 32.
Ke3 {[%clk 00:01:55]} {[%emt 00:00:43]} Ne7 {[%clk 00:01:41]} {[%emt 00:03:37]}
33. Rag1+ {[%clk 00:01:23]} {[%emt 00:01:02]} Kf7 {[%clk 00:02:03]} {[%emt
00:00:09]} 34. Ne5+ {[%clk 00:01:15]} {[%emt 00:00:38]} Ke8 {[%clk 00:02:31]}
{[%emt 00:00:01]} 35. f3 {[%clk 00:01:17]} {[%emt 00:00:28]} Rd8 {[%clk
00:01:31]} {[%emt 00:01:29]} 36. Kd3 {[%clk 00:01:28]} {[%emt 00:00:20]} Rg8
{[%clk 00:01:06]} {[%emt 00:00:55]} 37. Re1 {[%clk 00:01:09]} {[%emt 00:00:49]}
Nf5 {[%clk 00:00:43]} {[%emt 00:00:52]} 38. Ng4 {[%clk 00:01:24]} {[%emt
00:00:16]} Rg6 {[%clk 00:00:59]} {[%emt 00:00:14]} 39. Rh5 {[%clk 00:01:11]}
{[%emt 00:00:42]} Kf8 {[%clk 00:00:54]} {[%emt 00:00:35]} 40. Re5 {[%clk
00:00:45]} {[%emt 00:00:56]} Kg7 {[%clk 00:00:51]} {[%emt 00:00:34]} 41. Re1
{[%clk 00:25:40]} {[%emt 00:05:35]} Rc8 {[%clk 00:22:17]} {[%emt 00:09:04]} 42.
Rh3 {[%clk 00:25:29]} {[%emt 00:00:40]} Nd6 {[%clk 00:18:48]} {[%emt 00:04:00]}
43. Rxh6 {[%clk 00:15:21]} {[%emt 00:10:38]} Rxh6 {[%clk 00:19:01]} {[%emt
00:00:17]} 44. Nxh6 {[%clk 00:15:47]} {[%emt 00:00:03]} Nxb5 {[%clk 00:17:50]}
{[%emt 00:01:42]} 45. Rxe6 {[%clk 00:15:55]} {[%emt 00:00:23]} Rxc3+ {[%clk
00:18:13]} {[%emt 00:00:06]} 46. Kd2 {[%clk 00:16:17]} {[%emt 00:00:08]} Rxf3
{[%clk 00:17:12]} {[%emt 00:01:31]} 47. Rxb6 {[%clk 00:16:10]} {[%emt
00:00:37]} Nxd4 {[%clk 00:16:56]} {[%emt 00:00:46]} 48. Ng4 {[%clk 00:16:14]}
{[%emt 00:00:25]} Ra3 {[%clk 00:12:08]} {[%emt 00:05:19]} 49. Ne3 {[%clk
00:10:55]} {[%emt 00:05:48]} Nf3+ {[%clk 00:09:00]} {[%emt 00:03:38]} 50. Ke2
{[%clk 00:11:02]} {[%emt 00:00:23]} Ng1+ {[%clk 00:07:12]} {[%emt 00:02:18]} 51.
Kd2 {[%clk 00:10:17]} {[%emt 00:01:15]} Nf3+ {[%clk 00:06:14]} {[%emt
00:01:28]} 52. Ke2 {[%clk 00:10:42]} {[%emt 00:00:05]} d4 {[%clk 00:05:25]}
{[%emt 00:01:19]} 53. Nc4 {[%clk 00:10:27]} {[%emt 00:00:45]} Rc3 {[%clk
00:04:54]} {[%emt 00:01:02]} 54. Nxa5 {[%clk 00:10:13]} {[%emt 00:00:44]} Ne5
{[%clk 00:04:25]} {[%emt 00:00:59]} 55. Nb3 {[%clk 00:07:02]} {[%emt 00:03:41]}
d3+ {[%clk 00:03:34]} {[%emt 00:01:20]} 56. Kd1 {[%clk 00:06:58]} {[%emt
00:00:34]} Nc4 {[%clk 00:02:13]} {[%emt 00:01:52]} 57. Rb7+ {[%clk 00:07:08]}
{[%emt 00:00:20]} Kg6 {[%clk 00:02:12]} {[%emt 00:00:30]} 58. Nc1 {[%clk
00:06:25]} {[%emt 00:01:13]} d2 {[%clk 00:01:21]} {[%emt 00:01:21]} 59. Nb3
{[%clk 00:06:28]} {[%emt 00:00:27]} Rd3 {[%clk 00:01:29]} {[%emt 00:00:23]} 60.
Nxd2 {[%clk 00:06:22]} {[%emt 00:00:36]} Rxd2+ {[%clk 00:01:53]} {[%emt
00:00:06]} 61. Kc1 {[%clk 00:06:15]} {[%emt 00:00:36]} Rh2 {[%clk 00:01:47]}
{[%emt 00:00:34]} 62. Rc7 {[%clk 00:06:15]} {[%emt 00:00:32]} Ne5 {[%clk
00:01:55]} {[%emt 00:00:22]} 63. Rc8 {[%clk 00:05:59]} {[%emt 00:00:46]} Kf5
{[%emt 00:00:14]} 64. Kb1 {[%clk 00:06:10]} {[%emt 00:00:18]} Ke4 {[%clk
00:02:13]} {[%emt 00:00:30]} 65. Rd8 {[%clk 00:06:08]} {[%emt 00:00:32]} Nc6
{[%clk 00:01:43]} {[%emt 00:01:00]} 66. Rg8 {[%clk 00:05:46]} {[%emt 00:00:52]}
Nd4 {[%clk 00:01:37]} {[%emt 00:00:36]} 67. Rg4+ {[%clk 00:04:45]} {[%emt
00:01:30]} Kd3 {[%clk 00:01:18]} {[%emt 00:00:50]} 68. Rg3+ {[%clk 00:05:08]}
{[%emt 00:00:07]} Kc4 {[%clk 00:01:45]} {[%emt 00:00:03]} 69. Rg4 {[%clk
00:05:07]} {[%emt 00:00:31]} Rf2 {[%clk 00:01:30]} {[%emt 00:00:44]} 70. Rh4
{[%clk 00:04:08]} {[%emt 00:01:30]} Kb3 {[%clk 00:01:05]} {[%emt 00:00:55]} 71.
Kc1 {[%clk 00:02:28]} {[%emt 00:02:10]} Kc3 {[%clk 00:00:49]} {[%emt 00:00:46]}
72. Kb1 {[%clk 00:02:17]} {[%emt 00:00:40]} Rf1+ {[%clk 00:00:45]} {[%emt
00:00:35]} 73. Ka2 {[%clk 00:02:42]} {[%emt 00:00:05]} Rf2+ {[%clk 00:01:01]}
{[%emt 00:00:13]} 74. Ka3 {[%clk 00:02:03]} {[%emt 00:01:10]} Rf8 {[%clk
00:00:45]} {[%emt 00:00:46]} 75. Ka2 {[%clk 00:01:52]} {[%emt 00:00:40]} Ra8+
{[%clk 00:00:51]} {[%emt 00:00:24]} 76. Kb1 {[%clk 00:02:17]} {[%emt 00:00:06]}
Rb8+ {[%clk 00:00:48]} {[%emt 00:00:32]} 77. Kc1 {[%clk 00:02:23]} {[%emt
00:00:24]} Rg8 {[%clk 00:00:33]} {[%emt 00:00:46]} 78. Rh3+ {[%clk 00:02:29]}
{[%emt 00:00:24]} Kc4 {[%clk 00:00:55]} {[%emt 00:00:08]} 79. Rh4 {[%clk
00:02:03]} {[%emt 00:00:56]} Rg2 {[%clk 00:00:51]} {[%emt 00:00:33]} 80. Kb1
{[%clk 00:02:08]} {[%emt 00:00:26]} Rf2 {[%clk 00:00:50]} {[%emt 00:00:31]} 81.
Rh8 {[%clk 00:02:04]} {[%emt 00:00:34]} Nb5 {[%clk 00:00:52]} {[%emt 00:00:27]}
82. Kc1 {[%clk 00:02:03]} {[%emt 00:00:31]} Nd4 {[%clk 00:00:41]} {[%emt
00:00:42]} 83. Kb1 {[%clk 00:02:11]} {[%emt 00:00:22]} Kc3 {[%clk 00:00:46]}
{[%emt 00:00:24]} 84. Rc8+ {[%clk 00:02:23]} {[%emt 00:00:18]} Kd3 {[%clk
00:00:45]} {[%emt 00:00:31]} 85. Rh8 {[%clk 00:01:55]} {[%emt 00:00:58]} Nb5
{[%clk 00:00:38]} {[%emt 00:00:38]} 86. Rh3+ {[%clk 00:01:55]} {[%emt
00:00:29]} Kc4 {[%clk 00:01:04]} {[%emt 00:00:04]} 87. Kc1 {[%clk 00:01:57]}
{[%emt 00:00:29]} Rg2 {[%clk 00:01:10]} {[%emt 00:00:23]} 88. Rh8 {[%clk
00:01:26]} {[%emt 00:01:01]} Nc3 {[%clk 00:00:41]} {[%emt 00:01:00]} 89. Rc8+
{[%clk 00:01:14]} {[%emt 00:00:42]} Kd4 {[%clk 00:00:51]} {[%emt 00:00:19]} 90.
Rc4+ {[%clk 00:01:22]} {[%emt 00:00:22]} Kd3 {[%clk 00:01:02]} {[%emt
00:00:20]} 91. Rd4+ {[%clk 00:01:39]} {[%emt 00:00:12]} Ke3 {[%clk 00:01:17]}
{[%emt 00:00:15]} 92. Rd3+ {[%clk 00:01:57]} {[%emt 00:00:12]} Kxd3 {[%clk
00:01:46]} {[%emt 00:00:01]} 93. Kd1 {[%emt 00:03:00]} 1/2-1/2